{"text_format":"1","workbook":"xlsx","n_sheets":1,"sheets":["Cash Order Sheet"],"not_rendered":{"charts":0,"images":1,"macros":1,"external_links":0,"defined_names":1,"comments":1,"pivot_tables":0},"unopened":[],"bounds":{"document_bytes":16777216,"sheet_cells":100000,"rows_first":2000,"rows_last":500,"rows_between":2000,"halvings":0,"cell_chars":16384,"cell_head_chars":4096},"cells_cut":0,"cells_raw":0,"read":"whole","date_system":"1900"}

{"sheet":"Cash Order Sheet","index":0,"n_rows":37,"n_cols":20,"rows_kept":37,"cut":false,"hidden":false,"merged":[[36,0,36,3],[10,1,10,2],[17,1,17,2],[35,4,35,6],[7,1,7,2],[8,1,8,2],[1,0,1,6],[0,0,0,6],[5,1,5,2],[32,4,32,6],[6,1,6,2],[2,0,2,6],[6,3,7,6]]}
["Temporary Increase of Change Fund Request                          version 3",null,null,null,null,null,null,{"$f":"+B6","v":"00:00:00"},{"$f":"+B9","v":"(Select From List)"},{"$f":"+E12","v":0},{"$f":"+E13","v":0},{"$f":"+E14","v":0},{"$f":"+E15","v":0},{"$f":"+E19","v":0},{"$f":"+E20","v":0},{"$f":"+E21","v":0},{"$f":"+E22","v":0},{"$f":"+E23","v":0},{"$f":"+E24","v":0},{"$f":"SUM(J1:S1)","v":0}]
["Brigham Young University",null,null,null,null,null,null,{"$f":"B6","v":"00:00:00"},{"$f":"VLOOKUP(B9,$J$3:$M$27,4,FALSE)","v":0},{"$f":"+B9","v":"(Select From List)"},{"$f":"VLOOKUP(B9,J3:M27,3,FALSE)","v":0},{"$f":"-E27","v":0},null,{"$f":"+B7","v":"00:00:00"}]
["Treasury Services",null,null,null,null,null,null,null,null,"(Select From List)"]
[null,null,null,null,null,null,null,null,null,"Blue Line Deli & Market",null,"1100C","15512406-1080-00000"]
[null,null,null,null,null,null,null,null,null,"BYU Marriott Center ",null,"1140C","15660000-1080-00000"]
["Date of Request",null,null,null,null,null,null,null,null,"Campus Accommodations",null,"0379C","15513000-1080-00000"]
["Date to be Returned",null,null,null,null,null,null,null,null,"Campus Floral",null,"1250C","11890006-1080-01110"]
["Ordered By",null,null,null,null,null,null,null,null,"Campus Life",null,"1130C","11890004-1080-00950"]
["Location/Department","(Select From List)",null,null,null,null,null,null,null,"Cannon Dining",null,1246,"15512138-1080-00000"]
[null,null,null,null,null,null,null,null,null,"Concessions",null,"1000C","15512132-1080-00000"]
["Currency Needed","Denomination",null,"Bills Requested","Amount Requested",null,null,null,null,"Creamery on 9th East",null,"1030C","15512127-1080-00000"]
["Twenties",20,null,null,{"$f":"+B12*D12","v":0},null,null,null,null,"Creamery Outlet",null,1260,"15511213-1080-01002"]
["Tens",10,null,null,{"$f":"+B13*D13","v":0},null,null,null,null,"Div. of Cont. Education",null,"1090C","15512105-1080-00000"]
["Fives",5,null,null,{"$f":"+B14*D14","v":0},null,null,null,null,"Food-to-Go",null,"1020C","15512134-1080-00000"]
["Ones",1,null,null,{"$f":"+B15*D15","v":0},null,null,null,null,"HFAC",null,"1140D","15660001-1080-00000"]
[null,null,null,"Total currency requested",{"$f":"SUM(E12:E15)","v":0},null,null,null,null,"Jamba Juice SAB",null,"1080C","15512462-1080-00000"]
[null,null,null,null,null,null,null,null,null,"Laundry ",null,"1050C","15511719-1080-01010"]
["Coin Needed","Roll Value",null,"Rolls Requested","Amount Requested",null,null,null,null,"Legends Grille",null,"1110C","15512137-1080-00000"]
["Dollars (Vending)",25,null,null,{"$f":"+B19*D19","v":0},null,null,null,null,"MOA café",null,"1290C","15512174-1080-00000"]
["Half-Dollars (Concessions)",10,null,null,0,null,null,null,null,"MTC Business Office",null,"1060C","15511455-1080-00000"]
["Quarters",10,null,null,0,null,null,null,null,"MTC Laundry ",null,"1324C","15511719-1080-01009"]
["Dimes",5,null,null,0,null,null,null,null,"MTC West Laundry",null,"1324D","15511719-1080-01009"]
["Nickels",2,null,null,0,null,null,null,null,"Outdoors Unlimited",null,"1270C","12527000-1080-00000"]
["Pennies",0.5,null,null,0,null,null,null,null,"Pendulum Court",null,"8601C","11890004-1080-01116"]
[null,null,null,"Total coin requested",{"$f":"SUM(E19:E24)","v":0},null,null,null,null,"PMPC",null,"6465C","15423000-1080-01005"]
[null,null,null,null,null,null,null,null,null,"WSC",null,"1040C","15512125-1080-00000"]
[null,null,null,"Temporary Increase of Change Fund:",{"$f":"+E25+E16","v":0},null,null,null,null,"Wyview Creamery",null,"1040C","15512125-1080-00000"]
[]
["Requests received by 9 a.m. will be delivered the same day"]
["Requests received after 9 a.m. will be delivered the next day"]
["Requests can be made at any time at the Department Deposit window"]
[]
["For use by Treasury Services",null,null,null,"Be sure to open Outlook before clicking"]
[]
[]
[null,null,null,null,"(please email this form to exchangeorder@byu.edu)"]
["To be signed by courier upon delivery                           Date"]